fUSD/lending_fUSD_20250521
["ID","MTS","AMOUNT","RATE_DAILY","PERIOD"]
[361810874,1747823474924,-1438.01,0.0003315,5]
[361810875,1747823474936,-420.0,0.0003315,5]
[361810876,1747823474946,-420.0,0.0003315,5]
[361810877,1747823474955,-492.73,0.0003315,5]
[361810878,1747823474967,-2994.99,0.0003315,5]
[361810879,1747823474976,-2847.74,0.0003315,5]
[361810880,1747823474985,-845.16,0.0003315,5]
[361810881,1747823474994,-420.0,0.0003315,5]
[361810882,1747823475003,-908.75,0.0003315,5]
[361810883,1747823475012,-7033.02,0.0003315,5]
[361810884,1747823475022,-420.0,0.0003315,5]
[361810885,1747823475032,-420.0,0.0003315,5]
[361810886,1747823475041,-20631.06,0.0003315,5]
[361810887,1747823475051,-1653.01,0.0003315,5]
[361810888,1747823475060,-420.0,0.0003315,5]
[361810889,1747823475070,-420.0,0.0003315,5]
[361810890,1747823475079,-440.6,0.0003315,5]
[361810891,1747823475089,-480.69,0.0003315,5]
[361810892,1747823475098,-420.0,0.0003315,5]
[361810893,1747823475107,-1811.64,0.0003315,5]
[361810894,1747823475117,-420.0,0.0003315,5]
[361810895,1747823475127,-247.88376668,0.0003315,5]
[361810896,1747823475136,-1620.28,0.0003315,5]
[361810897,1747823475147,-1675.59,0.0003315,5]
[361810898,1747823475156,-1341.01,0.0003315,5]
[361810899,1747823475165,-2039.96,0.0003315,5]
[361810900,1747823475174,-347.63949149,0.0003315,5]
[361810901,1747823475183,-1650.39,0.0003315,5]
[361810902,1747823475193,-2331.07,0.0003315,5]
[361810903,1747823475202,-659.87,0.0003315,5]
[361810904,1747823475211,-1130.47,0.0003315,5]
[361810905,1747823475221,-8529.77,0.0003315,5]
[361810906,1747823475230,-1170.52,0.0003315,5]
[361810907,1747823475239,-420.0,0.0003315,5]
[361810908,1747823475249,-1019.14,0.0003315,5]
[361810909,1747823475257,-13852.49,0.0003315,5]
[361810910,1747823475267,-420.0,0.0003315,5]
[361810911,1747823475276,-594.46,0.0003315,5]
[361810912,1747823475288,-420.0,0.0003315,5]
[361810913,1747823475297,-528.88,0.0003315,5]
[361810914,1747823475307,-420.0,0.0003315,5]
[361810915,1747823475317,-729.81,0.0003315,5]
[361810916,1747823475326,-6448.31,0.0003315,5]
[361810917,1747823475335,-1260.39,0.0003315,5]
[361810918,1747823475344,-157.265004,0.0003315,5]
[361810919,1747823475356,-4031.81,0.0003315,5]
[361810920,1747823475366,-155.54138857,0.0003315,5]
[361810921,1747823475376,-1826.19,0.0003315,5]
[361810922,1747823475385,-15980.3,0.0003315,2]
[361810923,1747823475396,-569.82,0.0003315,5]
[361810924,1747823475405,-1991.55,0.0003315,5]
[361810925,1747823475414,-420.0,0.0003315,5]
[361810926,1747823475423,-420.0,0.0003315,5]
[361810927,1747823475435,-711.84,0.0003315,5]
[361810928,1747823475444,-1316.77,0.0003315,5]
[361810929,1747823475453,-1559.3,0.0003315,5]
[361810930,1747823475463,-932.88,0.0003315,5]
[361810931,1747823475472,-420.0,0.0003315,5]
[361810932,1747823475481,-1672.61,0.0003315,5]
[361810933,1747823475491,-1828.91,0.0003315,5]
[361810934,1747823475500,-420.0,0.0003315,5]
[361810935,1747823475509,-420.0,0.0003315,5]
[361810936,1747823475519,-6643.48,0.0003315,5]
[361810937,1747823475529,-420.0,0.0003315,5]
[361810938,1747823475539,-5987.12,0.0003315,5]
[361810939,1747823475548,-420.0,0.0003315,5]
[361810940,1747823475558,-4970.74,0.0003315,5]
[361810941,1747823475568,-420.0,0.0003315,5]
[361810942,1747823475578,-420.0,0.0003315,5]
[361810943,1747823475587,-908.99,0.0003315,5]
[361810944,1747823475596,-420.0,0.0003315,5]
[361810945,1747823475606,-1754.62,0.0003315,5]
[361810946,1747823475615,-636.17,0.0003315,5]
[361810947,1747823475625,-907.69,0.0003315,5]
[361810948,1747823475634,-420.0,0.0003315,5]
[361810949,1747823475643,-434.27,0.0003315,5]
[361810950,1747823475653,-420.0,0.0003315,5]
[361810951,1747823475663,-420.0,0.0003315,5]
[361810952,1747823475672,-14282.24,0.0003315,5]
[361810953,1747823475682,-1727.02,0.0003315,5]
[361810954,1747823475692,-2354.7,0.0003315,5]
[361810955,1747823475701,-2934.17,0.0003315,5]
[361810956,1747823475711,-420.0,0.0003315,5]
[361810957,1747823475720,-2098.09,0.0003315,5]
[361810958,1747823475730,-2370.12,0.0003315,5]
[361810959,1747823475739,-635.77,0.0003315,5]
[361810960,1747823475749,-1608.41,0.0003315,5]
[361810961,1747823475758,-2448.57,0.0003315,5]
[361810962,1747823475768,-565.39,0.0003315,5]
[361810963,1747823475777,-2132.27,0.0003315,5]
[361810964,1747823475787,-420.0,0.0003315,5]
[361810965,1747823475797,-420.0,0.0003315,5]
[361810966,1747823475806,-832.67,0.0003315,5]
[361810967,1747823475816,-674.57,0.0003315,5]
[361810968,1747823475826,-420.0,0.0003315,5]
[361810969,1747823475835,-1444.81,0.0003315,5]
[361810970,1747823475845,-1244.04,0.0003315,5]
[361810971,1747823475855,-14461.5,0.0003315,5]
[361810972,1747823475864,-4167.33,0.0003315,5]
[361810973,1747823475874,-5215.67,0.0003315,5]
[361810974,1747823475884,-888.13,0.0003315,5]
[361810975,1747823475893,-548.09,0.0003315,5]
[361810976,1747823475902,-420.0,0.0003315,5]
[361810977,1747823475912,-420.0,0.0003315,5]
[361810978,1747823475921,-207938.64,0.0003315,5]
[361810979,1747823475930,-420.0,0.0003315,5]
[361810980,1747823475940,-420.0,0.0003315,5]
[361810981,1747823475950,-420.0,0.0003315,5]
[361810982,1747823475959,-2319.06,0.0003315,5]
[361810983,1747823475968,-5582.21,0.0003315,5]
[361810984,1747823475977,-3257.11,0.0003315,5]
[361810985,1747823475987,-1507.21,0.0003315,5]
[361810986,1747823475996,-420.0,0.0003315,5]
[361810987,1747823476005,-420.0,0.0003315,5]
[361810988,1747823476015,-1493.55,0.0003315,5]
[361810989,1747823476024,-2557.88,0.0003315,5]
[361810990,1747823476034,-1088.44,0.0003315,5]
[361810991,1747823476043,-697.67,0.0003315,5]
[361810992,1747823476052,-2873.2,0.0003315,5]
[361810993,1747823476061,-420.0,0.0003315,5]
[361810994,1747823476070,-395.64040594,0.0003315,5]
[361810995,1747823476080,-420.0,0.0003315,5]
[361810996,1747823476089,-673.17,0.0003315,5]
[361810997,1747823476099,-480.01,0.0003315,5]
[361810998,1747823476107,-153.41542858,0.0003315,5]
[361810999,1747823476116,-1657.0,0.0003315,5]
[361811000,1747823476126,-2282.96,0.0003315,5]
[361811001,1747823476135,-420.0,0.0003315,5]
[361811002,1747823476144,-799.92,0.0003315,5]
[361811003,1747823476154,-18765.11,0.0003315,5]
[361811004,1747823476163,-1063.9,0.0003315,5]
[361811005,1747823476172,-420.0,0.0003315,5]
[361811006,1747823476181,-1719.68,0.0003315,5]
[361811007,1747823476190,-3847.23,0.0003315,5]
[361811008,1747823476201,-420.0,0.0003315,5]
[361811009,1747823476210,-420.0,0.0003315,5]
[361811010,1747823476219,-474.32,0.0003315,5]
[361811011,1747823476229,-549.05,0.0003315,5]
[361811012,1747823476238,-420.0,0.0003315,5]
[361811013,1747823476248,-2564.95,0.0003315,5]
[361811014,1747823476257,-420.0,0.0003315,5]
[361811015,1747823476266,-1818.07,0.0003315,5]
[361811016,1747823476276,-42262.48,0.0003315,5]
[361811017,1747823476286,-420.0,0.0003315,5]
[361811018,1747823476302,-1554.78,0.0003315,5]
[361811019,1747823476312,-4510.74,0.0003315,5]
[361811020,1747823476322,-516.93,0.0003315,5]
[361811021,1747823476331,-420.0,0.0003315,5]
[361811022,1747823476342,-3137.08,0.0003315,5]
[361811023,1747823476355,-506.82,0.0003315,5]
[361811024,1747823476365,-9532.22,0.0003315,5]
[361811025,1747823476375,-420.0,0.0003315,5]
[361811026,1747823476384,-1001.23,0.0003315,5]
[361811027,1747823476395,-1349.86,0.0003315,5]
[361811028,1747823476406,-874.84,0.0003315,5]
[361811029,1747823476416,-2359.68,0.0003315,5]
[361811030,1747823476427,-627.61,0.0003315,5]
[361811031,1747823476438,-670.93,0.0003315,5]
[361811032,1747823476448,-420.0,0.0003315,5]
[361811033,1747823476458,-1909.1,0.0003315,5]
[361811034,1747823476469,-3667.82,0.0003315,5]
[361811035,1747823476480,-3774.82,0.0003315,5]
[361811036,1747823476490,-713.73,0.0003315,5]
[361811037,1747823476500,-420.0,0.0003315,5]
[361811038,1747823476511,-323.54,0.0003315,5]
[361811039,1747823476522,-420.0,0.0003315,5]
[361811040,1747823476533,-1201.04,0.0003315,5]
[361811041,1747823476543,-420.0,0.0003315,5]
[361811042,1747823476553,-242.94,0.0003315,5]
[361811043,1747823476564,-420.0,0.0003315,5]
[361811044,1747823476574,-420.0,0.0003315,5]
[361811045,1747823476584,-467.85504515,0.0003315,2]
[361811046,1747823476595,-200.0,0.00033151,2]
[361811047,1747823476604,-500.0,0.00033173,5]
[361811048,1747823476614,-500.42848311,0.00033173,5]
[361811049,1747823476624,-501.62157536,0.00033173,5]
[361811050,1747823476635,-501.26157093,0.00033173,5]
[361811051,1747823476645,-500.0,0.00033173,5]
[361811052,1747823476655,-500.55910517,0.00033173,3]
[361811053,1747823476666,-500.0,0.00033173,5]
[361811054,1747823476676,-500.41242563,0.00033173,5]
[361811055,1747823476686,-368.43130571,0.00033173,5]
[361811056,1747823476694,-501.07401138,0.00033173,5]
[361811057,1747823476704,-500.0,0.00033173,5]
[361811058,1747823476714,-500.26014629,0.00033173,5]
[361811059,1747823476723,-500.0,0.00033173,5]
[361811060,1747823476732,-501.46591193,0.00033173,2]
[361811061,1747823476750,-500.0,0.00033173,5]
[361811062,1747823476760,-507.29034498,0.00033177,7]
[361811063,1747823476771,-151.0,0.00033177,5]
[361811064,1747823476782,-280.72768,0.0003319,2]
[361811065,1747823476792,-274.65450403,0.00033226,15]
[361811066,1747823476802,-853.85614654,0.00033233,2]
[361811067,1747823476812,-155.0,0.00033307,2]
[361811068,1747823476822,-274.65450403,0.00033379,15]
[361811069,1747823476833,-500.0,0.00033399,7]
[361811070,1747823476842,-7445.4,0.00033423,5]
[361811071,1747823476851,-7445.4,0.00033423,5]
[361811072,1747823476861,-7445.4,0.00033423,5]
[361811073,1747823476871,-7445.4,0.00033423,5]
[361811074,1747823476880,-7445.45045921,0.00033423,5]
[361811075,1747823476890,-1228.4,0.00033423,5]
[361811076,1747823476899,-1228.4,0.00033423,5]
[361811077,1747823476909,-1228.4,0.00033423,5]
[361811078,1747823476919,-1228.4,0.00033423,5]
[361811079,1747823476929,-1228.4,0.00033423,5]
[361811080,1747823476939,-1228.42326778,0.00033423,5]
[361811081,1747823476950,-420.0,0.00033424,5]
[361811082,1747823476960,-420.0,0.00033424,5]
[361811083,1747823476969,-420.0,0.00033424,5]
[361811084,1747823476979,-420.0,0.00033424,2]
[361811085,1747823476989,-420.0,0.00033424,5]
[361811086,1747823476999,-420.0,0.00033424,5]
[361811087,1747823477010,-450.01890964,0.00033424,5]
[361811088,1747823477020,-420.0,0.00033424,5]
[361811089,1747823477031,-420.0,0.00033424,5]
[361811090,1747823477042,-420.0,0.00033424,5]
[361811091,1747823477052,-420.0,0.00033424,5]
[361811092,1747823477062,-420.0,0.00033424,5]
[361811093,1747823477072,-420.0,0.00033424,5]
[361811094,1747823477083,-420.0,0.00033424,5]
[361811095,1747823477093,-420.0,0.00033424,5]
[361811096,1747823477103,-420.0,0.00033424,5]
[361811097,1747823477114,-420.0,0.00033424,3]
[361811098,1747823477124,-420.0,0.00033424,5]
[361811099,1747823477135,-420.0,0.00033424,5]
[361811100,1747823477144,-397.06372292,0.00033424,5]
[361811101,1747823477155,-420.0,0.00033424,5]
[361811102,1747823477165,-420.0,0.00033424,5]
[361811103,1747823477175,-241.92600505,0.00033424,5]
[361811104,1747823477192,-420.0,0.00033424,5]
[361811105,1747823477202,-868.63,0.00033424,5]
[361811106,1747823477213,-311.4426844,0.00033424,5]
[361811107,1747823477223,-420.0,0.00033424,5]
[361811108,1747823477234,-237.07512256,0.00033424,5]
[361811109,1747823477466,-420.0,0.00033424,5]
[361811110,1747823477493,-771.73,0.00033424,5]
[361811111,1747823477503,-420.0,0.00033424,5]
[361811112,1747823477513,-1206.97,0.00033424,5]
[361811113,1747823477523,-420.0,0.00033424,5]
[361811114,1747823477533,-420.0,0.00033424,5]
[361811115,1747823477543,-420.0,0.00033424,5]
[361811116,1747823477553,-1764.15,0.00033424,5]
[361811117,1747823477563,-429.68587482,0.00033424,5]
[361811118,1747823477572,-497.1,0.00033424,5]
[361811119,1747823477582,-550.16,0.00033424,5]
[361811120,1747823477592,-420.0,0.00033424,5]
[361811121,1747823477604,-420.0,0.00033424,5]
[361811122,1747823477614,-420.0,0.00033424,5]
[361811123,1747823477625,-965.56,0.00033424,5]
[361811124,1747823477635,-562.65,0.00033424,5]
[361811125,1747823477645,-616.51,0.00033424,5]
[361811126,1747823477655,-420.0,0.00033424,5]
[361811127,1747823477666,-420.0,0.00033424,5]
[361811128,1747823477675,-611.48,0.00033424,5]
[361811129,1747823477686,-420.0,0.00033424,5]
[361811130,1747823477696,-420.0,0.00033424,5]
[361811131,1747823477706,-420.0,0.00033424,5]
[361811132,1747823477716,-420.0,0.00033424,5]
[361811133,1747823477725,-420.0,0.00033424,5]
[361811134,1747823477736,-499.33,0.00033424,5]
[361811135,1747823477746,-506.54,0.00033424,5]
[361811136,1747823477756,-420.0,0.00033424,5]
[361811137,1747823477767,-911.46,0.00033424,5]
[361811138,1747823477776,-1153.75,0.00033424,5]
[361811139,1747823477786,-420.0,0.00033424,5]
[361811140,1747823477796,-420.0,0.00033424,5]
[361811141,1747823477806,-420.0,0.00033424,5]
[361811142,1747823477815,-420.0,0.00033424,5]
[361811143,1747823477825,-420.0,0.00033424,5]
[361811144,1747823477834,-730.43,0.00033424,5]
[361811145,1747823477844,-420.0,0.00033424,5]
[361811146,1747823477854,-420.0,0.00033424,5]
[361811147,1747823477864,-420.0,0.00033424,5]
[361811148,1747823477874,-168.39,0.00033424,5]
[361811149,1747823477885,-487.98,0.00033424,5]
[361811150,1747823477896,-1697.54,0.00033424,5]
[361811151,1747823477906,-420.0,0.00033424,5]
[361811152,1747823477918,-579.77,0.00033424,5]
[361811153,1747823477928,-420.0,0.00033424,5]
[361811154,1747823477938,-420.0,0.00033424,5]
[361811155,1747823477948,-420.0,0.00033424,5]
[361811156,1747823477957,-420.0,0.00033424,5]
[361811157,1747823477967,-570.61,0.00033424,5]
[361811158,1747823477977,-420.0,0.00033424,5]
[361811159,1747823477987,-420.0,0.00033424,5]
[361811160,1747823477997,-788.01,0.00033424,5]
[361811161,1747823478007,-420.0,0.00033424,5]
[361811162,1747823478017,-1490.72,0.00033424,5]
[361811163,1747823478028,-420.0,0.00033424,5]
[361811164,1747823478039,-917.84,0.00033424,5]
[361811165,1747823478050,-642.67,0.00033424,5]
[361811166,1747823478059,-420.0,0.00033424,5]
[361811167,1747823478069,-807.74,0.00033424,5]
[361811168,1747823478079,-901.58,0.00033424,5]
[361811169,1747823478102,-420.0,0.00033424,5]
[361811170,1747823478113,-3015.53,0.00033424,5]
[361811171,1747823478124,-420.0,0.00033424,5]
[361811172,1747823478135,-460.17,0.00033424,5]
[361811173,1747823478146,-420.0,0.00033424,5]
[361811174,1747823478157,-420.0,0.00033424,5]
[361811175,1747823478167,-642.11,0.00033424,5]
[361811176,1747823478179,-420.0,0.00033424,5]
[361811177,1747823478190,-420.0,0.00033424,5]
[361811178,1747823478200,-1185.77,0.00033424,5]
[361811179,1747823478211,-973.19,0.00033424,5]
[361811180,1747823478222,-497.57,0.00033424,5]
[361811181,1747823478232,-1098.15,0.00033424,5]
[361811182,1747823478242,-420.0,0.00033424,5]
[361811183,1747823478253,-420.0,0.00033424,5]
[361811184,1747823478264,-420.0,0.00033424,5]
[361811185,1747823478275,-420.0,0.00033424,5]
[361811186,1747823478285,-685.16,0.00033424,5]
[361811187,1747823478296,-420.0,0.00033424,5]
[361811188,1747823478306,-420.0,0.00033424,5]
[361811189,1747823478317,-420.0,0.00033424,5]
[361811190,1747823478328,-818.23,0.00033424,5]
[361811191,1747823478338,-1485.21,0.00033424,5]
[361811192,1747823478349,-448.34,0.00033424,5]
[361811193,1747823478363,-443.81,0.00033424,5]
[361811194,1747823478373,-1526.88,0.00033424,5]
[361811195,1747823478384,-420.0,0.00033424,5]
[361811196,1747823478395,-420.0,0.00033424,5]
[361811197,1747823478405,-470.16,0.00033424,5]
[361811198,1747823478416,-443.58,0.00033424,5]
[361811199,1747823478426,-669.64,0.00033424,5]
[361811200,1747823478439,-420.0,0.00033424,5]
[361811201,1747823478450,-420.0,0.00033424,5]
[361811202,1747823478460,-420.0,0.00033424,5]
[361811203,1747823478470,-937.45,0.00033424,5]
[361811204,1747823478481,-2266.87,0.00033424,5]
[361811205,1747823478491,-420.0,0.00033424,5]
[361811206,1747823478502,-442.68,0.00033424,5]
[361811207,1747823478520,-420.0,0.00033424,5]
[361811208,1747823478531,-420.0,0.00033424,5]
[361811209,1747823478542,-566.90920755,0.00033424,5]
[361811210,1747823478553,-420.0,0.00033424,5]
[361811211,1747823478564,-420.0,0.00033424,5]
[361811212,1747823478575,-655.53,0.00033424,5]
[361811213,1747823478587,-597.09,0.00033424,5]
[361811214,1747823478598,-397.22976003,0.00033424,5]
[361811215,1747823478609,-420.0,0.00033424,5]
[361811216,1747823478620,-420.0,0.00033424,5]
[361811217,1747823478632,-636.42,0.00033424,5]
[361811218,1747823478643,-420.0,0.00033424,5]
[361811219,1747823478655,-420.0,0.00033424,5]
[361811220,1747823478667,-420.0,0.00033424,5]
[361811221,1747823478678,-169.96506094,0.00033424,5]
[361811222,1747823478690,-838.78,0.00033424,5]
[361811223,1747823478701,-420.0,0.00033424,5]
[361811224,1747823478713,-493.93,0.00033424,5]
[361811225,1747823478724,-420.0,0.00033424,5]
[361811226,1747823478736,-420.0,0.00033424,5]
[361811227,1747823478747,-560.23,0.00033424,5]
[361811228,1747823478758,-420.0,0.00033424,5]
[361811229,1747823478770,-1078.18,0.00033424,5]
[361811230,1747823478782,-420.0,0.00033424,5]
[361811231,1747823478793,-217.81812739,0.00033424,5]
[361811232,1747823478804,-420.0,0.00033424,5]
[361811233,1747823478815,-2322.3,0.00033424,5]
[361811234,1747823478826,-420.0,0.00033424,5]
[361811235,1747823478837,-420.0,0.00033424,5]
[361811236,1747823478848,-1065.69,0.00033424,5]
[361811237,1747823478859,-420.0,0.00033424,5]
[361811238,1747823478870,-1253.93,0.00033424,5]
[361811239,1747823478881,-1274.75,0.00033424,5]
[361811240,1747823478892,-463.91,0.00033424,5]
[361811241,1747823478903,-721.97,0.00033424,5]
[361811242,1747823478915,-420.0,0.00033424,5]
[361811243,1747823478927,-308.97121459,0.00033424,5]
[361811244,1747823478945,-483.58850732,0.00033424,5]
[361811245,1747823478957,-338.45732409,0.00033424,5]
[361811246,1747823478968,-821.62,0.00033424,5]
[361811247,1747823478979,-422.38,0.00033424,5]
[361811248,1747823478990,-420.0,0.00033424,5]
[361811249,1747823479001,-1544.61,0.00033424,5]
[361811250,1747823479011,-550.85,0.00033424,5]
[361811251,1747823479022,-420.0,0.00033424,5]
[361811252,1747823479033,-420.0,0.00033424,5]
[361811253,1747823479044,-420.0,0.00033424,5]
[361811254,1747823479055,-420.0,0.00033424,5]
[361811255,1747823479067,-535.26179875,0.00033424,5]
[361811256,1747823479078,-499.46,0.00033424,5]
[361811257,1747823479090,-420.0,0.00033424,5]
[361811258,1747823479101,-678.04,0.00033424,5]
[361811259,1747823479112,-616.6,0.00033424,5]
[361811260,1747823479123,-1170.85,0.00033424,5]
[361811261,1747823479134,-546.75,0.00033424,5]
[361811262,1747823479145,-420.0,0.00033424,5]
[361811263,1747823479156,-420.0,0.00033424,5]
[361811264,1747823479168,-420.0,0.00033424,5]
[361811265,1747823479179,-1581.01,0.00033424,5]
[361811266,1747823479190,-420.0,0.00033424,5]
[361811267,1747823479201,-2020.82,0.00033424,5]
[361811268,1747823479212,-420.0,0.00033424,5]
[361811269,1747823479223,-420.0,0.00033424,5]
[361811270,1747823479234,-1587.36,0.00033424,5]
[361811271,1747823479244,-440.31,0.00033424,5]
[361811272,1747823479256,-528.73,0.00033424,5]
[361811273,1747823479266,-420.0,0.00033424,5]
[361811274,1747823479278,-530.24,0.00033424,5]
[361811275,1747823479288,-835.65,0.00033424,5]
[361811276,1747823479299,-420.0,0.00033424,5]
[361811277,1747823479309,-420.0,0.00033424,5]
[361811278,1747823479321,-632.49,0.00033424,5]
[361811279,1747823479332,-712.53,0.00033424,5]
[361811280,1747823479343,-420.0,0.00033424,5]
[361811281,1747823479356,-420.0,0.00033424,5]
[361811282,1747823479373,-396.8965494,0.00033424,5]
[361811283,1747823479384,-905.81,0.00033424,5]
[361811284,1747823479394,-420.0,0.00033424,5]
[361811285,1747823479407,-1500.35,0.00033424,5]
[361811286,1747823479418,-420.0,0.00033424,5]
[361811287,1747823479430,-913.23,0.00033424,5]
[361811288,1747823479440,-891.23,0.00033424,5]
[361811289,1747823479451,-420.0,0.00033424,5]
[361811290,1747823479461,-420.0,0.00033424,5]
[361811291,1747823479472,-420.0,0.00033424,5]
[361811292,1747823479482,-420.0,0.00033424,5]
[361811293,1747823479493,-420.0,0.00033424,5]
[361811294,1747823479504,-420.0,0.00033424,5]
[361811295,1747823479515,-420.0,0.00033424,5]
[361811296,1747823479526,-793.59,0.00033424,5]
[361811297,1747823479537,-420.0,0.00033424,5]
[361811298,1747823479548,-475.16072094,0.00033424,5]
[361811299,1747823479559,-420.0,0.00033424,5]
[361811300,1747823479570,-532.78,0.00033424,5]
[361811301,1747823479581,-420.0,0.00033424,5]
[361811302,1747823479591,-420.0,0.00033424,5]
[361811303,1747823479601,-420.0,0.00033424,5]
[361811304,1747823479612,-420.0,0.00033424,5]
[361811305,1747823479623,-716.67,0.00033424,5]
[361811306,1747823479634,-431.22,0.00033424,5]
[361811307,1747823479644,-3321.89,0.00033424,5]
[361811308,1747823479655,-655.87,0.00033424,5]
[361811309,1747823479665,-420.0,0.00033424,5]
[361811310,1747823479676,-420.0,0.00033424,5]
[361811311,1747823479687,-464.92,0.00033424,5]
[361811312,1747823479699,-420.0,0.00033424,5]
[361811313,1747823479709,-752.46,0.00033424,5]
[361811314,1747823479720,-420.0,0.00033424,5]
[361811315,1747823479730,-420.0,0.00033424,5]
[361811316,1747823479740,-1164.32,0.00033424,5]
[361811317,1747823479750,-420.0,0.00033424,5]
[361811318,1747823479761,-447.46,0.00033424,5]
[361811319,1747823479771,-420.0,0.00033424,5]
[361811320,1747823479781,-420.0,0.00033424,5]
[361811321,1747823479791,-970.46,0.00033424,5]
[361811322,1747823479802,-1182.51,0.00033424,5]
[361811323,1747823479824,-267.90625931,0.00033424,5]
[361811324,1747823479835,-2566.8,0.00033424,3]
[361811325,1747823479846,-420.0,0.00033424,5]
[361811326,1747823480444,-986.1,0.00033424,5]
[361811327,1747823480460,-3544.76,0.00033424,5]
[361811328,1747823480471,-528.46,0.00033424,5]
[361811329,1747823480481,-420.0,0.00033424,5]
[361811330,1747823480491,-498.41,0.00033424,5]
[361811331,1747823480501,-420.0,0.00033424,5]
[361811332,1747823480512,-420.0,0.00033424,5]
[361811333,1747823480522,-420.0,0.00033424,5]
[361811334,1747823480532,-1116.24,0.00033424,5]
[361811335,1747823480543,-607.2,0.00033424,5]
[361811336,1747823480554,-511.54,0.00033424,5]
[361811337,1747823480563,-420.0,0.00033424,5]
[361811338,1747823480573,-420.0,0.00033424,5]
[361811339,1747823480583,-1446.26,0.00033424,5]
[361811340,1747823480593,-420.0,0.00033424,5]
[361811341,1747823480603,-399.47486058,0.00033424,5]
[361811342,1747823480613,-635.53,0.00033424,5]
[361811343,1747823480623,-420.0,0.00033424,5]
[361811344,1747823480633,-420.0,0.00033424,5]
[361811345,1747823480643,-420.0,0.00033424,5]
[361811346,1747823480654,-602.05,0.00033424,5]
[361811347,1747823480664,-420.0,0.00033424,5]
[361811348,1747823480674,-420.0,0.00033424,5]
[361811349,1747823480684,-3171.93,0.00033424,5]
[361811350,1747823480695,-420.0,0.00033424,5]
[361811351,1747823480705,-420.0,0.00033424,5]
[361811352,1747823480715,-672.06,0.00033424,5]
[361811353,1747823480726,-501.87,0.00033424,5]
[361811354,1747823480736,-1136.92,0.00033424,5]
[361811355,1747823480747,-420.0,0.00033424,5]
[361811356,1747823480756,-960.17,0.00033424,5]
[361811357,1747823480767,-420.0,0.00033424,5]
[361811358,1747823480776,-420.0,0.00033424,5]
[361811359,1747823480787,-1498.01,0.00033424,5]
[361811360,1747823480796,-420.0,0.00033424,5]
[361811361,1747823480806,-420.0,0.00033424,5]
[361811362,1747823480816,-420.0,0.00033424,5]
[361811363,1747823480825,-489.93,0.00033424,5]
[361811364,1747823480836,-420.0,0.00033424,5]
[361811365,1747823480846,-420.0,0.00033424,5]
[361811366,1747823480857,-420.0,0.00033424,5]
[361811367,1747823480867,-1634.56,0.00033424,5]
[361811368,1747823480878,-420.0,0.00033424,5]
[361811369,1747823480888,-1181.55,0.00033424,5]
[361811370,1747823480898,-420.0,0.00033424,5]
[361811371,1747823480909,-420.0,0.00033424,5]
[361811372,1747823480918,-420.0,0.00033424,5]
[361811373,1747823480928,-420.0,0.00033424,5]